bitfinex/quotes_ETHUSD_20250721
["timestamp","ask_amount","ask_price","bid_price","bid_amount"]
[1753127401996,0.1336,3733.0,3732.5,4.364]
[1753127402198,0.8244,3733.7,3732.6,4.37726449]
[1753127402495,2.67781182,3734.4,3733.1,0.1336]
[1753127402654,2.67781182,3734.4,3732.7,4.57685645]
[1753127402655,0.1336,3734.2,3733.9,2.67811153]
[1753127402856,0.1336,3734.2,3733.6,0.1336]
[1753127402857,0.6002,3734.7,3734.0,4.51083868]
[1753127403175,2.67801407,3734.2,3734.0,4.4976]
[1753127403377,0.4666,3734.1,3733.3,0.8264]
[1753127403577,2.67829079,3733.8,3733.4,4.364]
[1753127403855,2.67817128,3733.9,3733.5,0.1336]
[1753127403996,0.1336,3734.1,3733.5,0.1336]
[1753127404315,0.55,3734.8,3733.2,4.363]
[1753127404316,2.67816492,3733.9,3733.2,4.363]
[1753127404460,3.76789444,3733.8,3732.2,0.8264]
[1753127404663,3.76789444,3733.8,3732.7,0.1336]
[1753127404664,2.67884452,3733.0,3732.7,0.1336]
[1753127404867,2.81236773,3733.1,3732.5,0.1336]
[1753127405172,0.1336,3733.1,3732.5,0.1336]
[1753127405360,2.6788106,3733.0,3732.5,0.1336]
[1753127405562,0.16708423,3733.1,3732.5,0.14686199]
[1753127405767,0.16708423,3733.1,3732.5,0.94841828]
[1753127406064,0.1336,3733.1,3732.5,0.94841828]
[1753127406266,0.1336,3733.1,3732.5,0.14686199]
[1753127406467,2.6789374,3732.9,3732.5,0.14686199]
[1753127406666,0.1336,3733.1,3732.5,0.14686343]
[1753127406897,2.67838011,3733.6,3732.5,0.01326343]
[1753127407060,2.67878768,3733.1,3732.9,0.1336]
[1753127407261,2.67878768,3733.1,3732.9,4.4966]
[1753127407909,0.03348333,3733.2,3732.2,0.8264]
[1753127408108,0.6002,3733.0,3732.4,0.1336]
[1753127408307,2.67916945,3732.5,3732.4,0.1336]
[1753127408510,2.6795095,3732.1,3731.7,0.1336]
[1753127408694,2.67953546,3732.0,3731.8,4.363]
[1753127408902,0.1336,3732.4,3731.8,7.04266783]
[1753127409077,0.1336,3732.4,3731.9,0.0132742]
[1753127409277,0.1336,3732.4,3731.8,4.363]
[1753127409278,2.6794393,3732.2,3731.8,4.363]
[1753127409679,3.27944896,3732.4,3731.8,4.37627599]
[1753127409680,0.6002,3732.4,3731.8,4.37627599]
[1753127409880,3.27944716,3732.4,3731.8,4.363]
[1753127410076,2.67935841,3732.3,3731.8,4.363]
[1753127410619,2.67883732,3733.0,3732.3,2.67925981]
[1753127410779,0.83,3733.2,3732.4,7.05549283]
[1753127411114,2.67903905,3732.7,3732.5,0.1336]
[1753127411271,2.67897733,3732.8,3732.5,0.1336]
[1753127411479,2.67893454,3732.9,3732.5,0.1336]
[1753127411675,0.63368423,3733.1,3732.5,0.1336]
[1753127411676,3.31243771,3733.1,3732.5,0.1336]
[1753127411974,2.67908267,3732.7,3732.5,0.1336]
[1753127412374,2.67908267,3732.7,3732.6,0.5]
[1753127412575,2.67888237,3732.9,3732.6,0.5]
[1753127412771,2.6789617,3732.8,3732.6,0.5]
[1753127412976,3.1456259,3732.7,3732.6,0.5]
[1753127413187,2.67916945,3732.5,3732.4,4.363]
[1753127413477,2.67916945,3732.5,3731.9,0.1336]
[1753127413478,2.6795284,3732.0,3731.9,0.1336]
[1753127413677,2.6797458,3731.7,3731.3,0.14687849]
[1753127413986,0.03349141,3732.3,3731.4,2.67989561]
[1753127414178,2.67950735,3732.1,3731.6,0.1336]
[1753127414376,2.67950735,3732.1,3731.7,4.37527851]
[1753127414797,0.1336,3732.2,3731.7,4.37527851]
[1753127415226,0.1336,3732.2,3731.8,0.7553]
[1753127415520,0.1336,3732.9,3732.1,0.1336]
[1753127415701,0.1336,3732.9,3732.3,2.67930228]
[1753127415903,2.81235272,3733.1,3732.5,0.1336]
[1753127416090,0.1336,3733.1,3732.5,0.1336]
[1753127416421,2.67894652,3732.9,3732.5,0.1336]
[1753127416579,0.1336,3733.1,3732.5,0.1336]
[1753127417021,0.1336,3733.8,3733.0,0.1336]
[1753127417175,0.03347526,3734.1,3733.1,4.37525123]
[1753127417176,0.1336,3734.0,3733.1,4.37525123]
[1753127417520,2.67829673,3733.8,3733.4,0.1336]
[1753127417673,2.67825386,3733.8,3733.4,0.1336]
[1753127417878,0.16707616,3734.0,3733.4,0.1336]
[1753127418295,2.8452281,3734.0,3733.4,0.1336]
[1753127418515,0.1336,3734.0,3733.4,2.82535323]
[1753127418703,0.03347347,3734.3,3733.4,0.14684585]
[1753127418704,2.71141013,3734.3,3733.4,0.14684585]
[1753127418902,0.16707347,3734.3,3733.6,0.1336]
[1753127419117,0.16707347,3734.3,3733.7,0.01324119]
[1753127419286,2.84500399,3734.3,3733.6,4.4956]
[1753127419485,0.4626,3734.2,3733.6,4.4956]
[1753127419882,3.14060983,3734.2,3733.6,4.4956]
[1753127420522,0.03347526,3734.1,3733.6,4.362]
[1753127420694,2.81171344,3734.0,3733.6,4.362]
[1753127421018,3.14076806,3733.9,3733.6,4.362]
[1753127421223,0.1336,3734.0,3733.4,0.14684369]
[1753127421531,0.1336,3734.0,3733.4,7.18735502]
[1753127421734,0.1336,3734.0,3733.4,4.4956]
[1753127421899,2.67816928,3733.9,3733.4,4.50884585]
[1753127422100,2.67828235,3733.8,3733.4,4.50884585]
[1753127422300,2.81169377,3734.0,3733.4,4.50884585]
[1753127422301,0.4626,3733.9,3733.4,4.50884585]
[1753127422708,0.4626,3733.9,3733.4,4.4956]
[1753127423026,2.84518176,3734.0,3733.4,7.1873537]
[1753127423234,0.5962,3734.0,3733.4,4.4956]
[1753127423746,2.67823921,3733.8,3733.4,4.4956]
[1753127423900,0.5962,3734.0,3733.4,4.4956]
[1753127424096,3.2743182,3734.0,3733.4,4.4956]
[1753127424313,2.8117182,3734.0,3733.4,7.18736414]
[1753127424655,2.6778197,3734.4,3733.5,0.7658]
[1753127424929,2.67764254,3734.7,3734.1,2.6780187]
[1753127425128,0.1336,3734.7,3734.2,4.50783294]
[1753127425441,2.67776369,3734.5,3734.2,4.50783294]
[1753127425635,2.67768255,3734.6,3734.2,4.50783294]
[1753127425832,2.67773967,3734.5,3734.2,4.50783294]
[1753127426196,0.1336,3734.7,3734.2,0.14683294]
[1753127426401,2.67821967,3733.9,3733.8,0.1336]
[1753127426625,2.67845137,3733.6,3732.9,0.7558]
[1753127426809,2.67833449,3733.7,3733.4,0.1336]
[1753127427022,2.6783815,3733.6,3733.4,0.1336]
[1753127427331,0.1336,3734.0,3733.4,0.1336]
[1753127427498,2.67840808,3733.6,3733.4,0.1336]
[1753127428537,2.6783208,3733.7,3733.4,0.1336]
[1753127429108,2.67845185,3733.5,3733.4,0.1336]
[1753127429433,2.67845185,3733.5,3733.0,4.90458]
[1753127429434,2.67868642,3733.2,3732.9,0.7558]
[1753127429633,2.67868642,3733.2,3733.0,4.4936]
[1753127429820,2.67873884,3733.1,3733.0,4.4936]
[1753127430336,2.67873884,3733.1,3733.0,4.36]
[1753127430337,3.14133884,3733.1,3733.0,4.36]
[1753127430539,2.71212982,3733.3,3732.5,0.7914]
[1753127430540,2.67881738,3733.0,3732.7,4.4926]
[1753127430831,2.67823664,3733.8,3732.8,2.69220069]
[1753127431032,2.8119246,3733.7,3733.1,0.1336]
[1753127431211,2.67852326,3733.5,3733.2,4.359]
[1753127431601,2.67839618,3733.6,3733.2,4.359]
[1753127431807,2.67852359,3733.4,3733.2,4.359]
[1753127432018,2.67859534,3733.3,3733.2,4.359]
[1753127432220,2.678539,3733.4,3733.2,4.359]
[1753127432543,3.14119534,3733.3,3733.2,4.359]
[1753127432902,2.6788106,3733.0,3732.7,4.4926]
[1753127433105,0.03348423,3733.1,3732.7,4.359]
[1753127433303,0.4626,3732.9,3732.7,4.359]
[1753127433511,2.67881278,3733.0,3732.7,4.359]
[1753127434041,2.81235577,3733.1,3732.7,4.359]
[1753127434343,0.1336,3733.1,3732.7,7.03795738]
[1753127434501,0.1336,3733.1,3732.7,5.07748197]
[1753127434706,2.67886823,3733.0,3732.7,5.07748197]
[1753127435219,2.81234054,3733.1,3732.7,5.07748197]
[1753127435541,2.81234054,3733.1,3732.7,5.09074181]
[1753127435542,2.67881775,3733.0,3732.7,5.09074181]
[1753127435744,2.67881775,3733.0,3732.7,5.07748197]
[1753127436240,0.1336,3733.1,3732.7,5.07748197]
[1753127436416,2.6788106,3733.0,3732.7,5.07748197]
[1753127436612,0.1336,3733.1,3732.7,5.07748197]
[1753127436843,2.81235416,3733.1,3732.7,5.09074181]
[1753127437002,2.6788106,3733.0,3732.7,4.37225984]
[1753127437198,2.6788106,3733.0,3732.7,4.359]
[1753127437739,3.27496147,3733.1,3732.7,4.359]
[1753127438041,3.27496147,3733.1,3732.5,0.1336]
[1753127438042,2.67909767,3732.6,3732.5,0.1336]
[1753127438340,0.4626,3733.0,3732.5,0.1336]
[1753127438640,0.16708423,3733.1,3732.5,0.1336]
[1753127438804,0.16708423,3733.1,3732.5,0.85201553]
[1753127439141,2.6785403,3733.4,3733.0,0.1336]
[1753127439334,2.67860899,3733.3,3733.1,4.358]
[1753127439642,3.14115222,3733.4,3733.1,4.358]
[1753127439812,2.67855222,3733.4,3733.1,4.358]
[1753127440361,0.1336,3733.6,3733.1,5.86885488]
[1753127440636,0.002,3733.9,3733.3,0.1336]
[1753127440835,0.002,3733.9,3733.4,2.69175024]
[1753127441039,0.002,3733.9,3733.5,4.4916]
[1753127441214,0.002,3733.9,3733.6,0.01324514]
[1753127441562,0.002,3733.9,3733.6,0.99943307]
[1753127441701,0.002,3733.9,3733.6,0.01324514]
[1753127442014,0.002,3733.9,3733.7,4.357]
[1753127443257,2.68016492,3733.9,3733.8,4.357]
[1753127443569,0.1336,3733.5,3733.1,4.357]
[1753127443706,0.16708064,3733.5,3733.1,4.357]
[1753127443906,2.67866709,3733.2,3733.1,4.357]
[1753127444260,0.4626,3733.2,3732.6,0.1336]
[1753127444546,0.1336,3733.0,3732.6,4.357]
[1753127444706,2.67888237,3732.9,3732.6,4.357]
[1753127444907,2.67888899,3732.9,3732.6,4.357]
[1753127445118,2.67879397,3733.1,3732.6,5.07531716]
[1753127445458,0.16708244,3733.3,3732.7,0.01326056]
[1753127445663,0.4626,3733.0,3732.7,4.356]
[1753127445854,2.67895413,3732.8,3732.7,4.356]
[1753127446049,3.14155413,3732.8,3732.7,4.356]
[1753127446226,2.6790259,3732.7,3731.8,2.6796283]
[1753127446561,0.1336,3732.5,3731.9,4.50287204]
[1753127447338,2.67928631,3732.4,3731.9,4.50287204]
[1753127447555,0.16708961,3732.5,3731.9,4.50287204]
[1753127447760,2.6792464,3732.4,3731.9,4.50287204]
[1753127448460,3.12547335,3732.3,3731.9,4.50287204]
[1753127448838,0.16708961,3732.5,3731.9,4.50287204]
[1753127449041,0.1336,3732.9,3731.9,5.1661821]
[1753127449245,0.1336,3732.9,3732.2,0.1336]
[1753127449442,2.67910691,3732.6,3732.2,0.1336]
[1753127449635,2.67904488,3732.7,3732.2,0.1336]
[1753127450468,3.12514488,3732.7,3732.2,0.1336]
[1753127451031,2.67904488,3732.7,3732.2,0.1336]
[1753127451377,2.67909813,3732.6,3732.2,0.1336]
[1753127451665,2.712497,3732.8,3732.2,0.1336]
[1753127451870,2.6790259,3732.7,3732.2,0.1336]
[1753127452245,2.71246414,3732.8,3732.2,2.81296452]
[1753127452468,2.67902781,3732.7,3732.2,0.1336]
[1753127452681,2.67924123,3732.4,3732.3,4.355]
[1753127453051,3.12534123,3732.4,3732.3,4.355]
[1753127453981,0.4461,3732.4,3732.3,4.355]
[1753127454483,3.12534123,3732.4,3732.3,4.355]
[1753127455255,2.81279673,3732.5,3732.3,4.355]
[1753127455256,0.1336,3732.5,3732.3,4.355]
[1753127455464,0.1336,3732.8,3732.3,4.355]
[1753127455670,0.4461,3732.7,3732.3,4.355]
[1753127455970,2.67924123,3732.4,3732.3,4.355]
[1753127456174,2.6795284,3732.0,3731.9,0.001]
[1753127456551,3.1256284,3732.0,3731.9,0.001]
[1753127460188,0.1336,3732.1,3731.9,0.001]
[1753127460508,0.1336,3732.7,3732.0,3.48339703]
[1753127460795,0.002,3733.1,3733.0,2.6788106]
[1753127460966,0.002,3733.1,3733.0,7.8358106]
[1753127461363,0.002,3733.1,3733.0,8.1201106]
[1753127463606,0.002,3733.1,3733.0,11.1201106]
[1753127465796,0.002,3733.1,3733.0,3.804]
[1753127465993,0.002,3733.1,3733.0,10.8338106]
[1753127466163,0.002,3733.1,3733.0,0.804]
[1753127466371,0.002,3733.1,3733.0,5.155]
[1753127466578,0.002,3733.1,3733.0,5.16825662]
[1753127466853,0.002,3733.1,3733.0,5.155]
[1753127467053,0.002,3733.1,3733.0,8.61721299]
[1753127467499,0.002,3733.1,3733.0,11.90151299]
[1753127468273,0.002,3733.1,3733.0,12.45151299]
[1753127469393,1e-08,3733.1,3733.0,12.45151299]
[1753127470763,1e-08,3733.1,3733.0,11.61521299]
[1753127470960,1e-08,3733.1,3733.0,11.89951299]
[1753127471366,1e-08,3733.1,3733.0,12.44951299]
[1753127471763,1e-08,3733.1,3733.0,14.90686299]
[1753127471962,1e-08,3733.1,3733.0,12.44951299]
[1753127472505,1e-08,3733.1,3733.0,14.74306399]
[1753127472858,1e-08,3733.1,3733.0,15.04776399]
[1753127473078,0.002,3733.9,3733.0,15.04776399]
[1753127473079,0.002,3733.9,3733.8,2.67823664]
[1753127473278,0.002,3733.9,3733.8,7.65542471]
[1753127473489,0.002,3733.9,3733.8,7.64218244]
[1753127474682,0.002,3733.9,3733.8,12.33218244]
[1753127475882,0.002,3733.9,3733.8,12.46578244]
[1753127476209,0.002,3733.9,3733.8,12.96578244]
[1753127477292,0.002,3733.9,3733.8,12.96378244]
[1753127477980,0.002,3733.9,3733.8,16.24808244]
[1753127478182,0.002,3734.8,3734.6,2.67766293]
[1753127478399,1e-08,3734.7,3734.6,11.75522922]
[1753127478605,1e-08,3734.8,3734.7,2.67759123]
[1753127478814,1e-08,3734.8,3734.7,6.24081737]
[1753127479011,1e-08,3734.8,3734.7,6.52511737]
[1753127479200,0.002,3735.3,3735.1,7.03210448]
[1753127479507,0.002,3736.2,3735.9,2.67673117]
[1753127479710,0.002,3736.2,3735.9,7.84903117]
[1753127479873,0.002,3736.2,3736.1,6.22658788]
[1753127480075,1e-08,3736.2,3736.1,10.71838893]
[1753127480309,1e-08,3736.8,3736.7,4.0082581]
[1753127480520,1e-08,3736.8,3736.7,12.03489898]
[1753127480688,1e-08,3736.8,3736.7,12.14752155]
[1753127480876,1e-08,3736.8,3736.7,12.43960867]
[1753127481076,1e-08,3736.8,3736.7,12.15530867]
[1753127481973,1e-08,3736.8,3736.7,3.5918581]
[1753127482172,1e-08,3736.8,3736.7,3.3597581]
[1753127482373,0.79063855,3738.2,3736.7,3.3597581]
[1753127482374,0.4713,3738.8,3737.7,0.55]
[1753127482604,0.2797263,3739.6,3737.6,0.7762]
[1753127482605,0.4713,3739.2,3737.9,3.55]
[1753127482813,10.98893718,3740.2,3737.9,3.55]
[1753127482814,0.4713,3740.4,3738.6,1.3283]
[1753127483011,0.4713,3740.4,3738.7,1.23172372]
[1753127483210,0.4713,3740.4,3738.6,0.7783]
[1753127483414,2.70700822,3740.3,3739.0,3.0]
[1753127483609,0.03341977,3740.3,3739.2,2.67436858]
[1753127483824,3.24040623,3740.6,3738.8,3.0]
[1753127483825,0.4713,3740.2,3739.3,4.35513804]
[1753127484040,0.4713,3740.2,3739.4,4.342]
[1753127484217,0.4713,3740.2,3739.5,0.01313662]
[1753127484218,3.1449983,3740.2,3739.5,0.01313662]
[1753127484388,0.7983,3740.7,3739.5,0.44865028]
[1753127484586,1.2696,3740.9,3739.6,0.7783]
[1753127484806,1.2696,3740.9,3739.7,7.35422081]
[1753127485029,1.2696,3740.9,3739.8,5.68703778]
[1753127485183,2.67332589,3740.7,3739.8,3.01312839]
[1753127485524,2.6732361,3740.8,3739.8,4.15680899]
[1753127485849,0.4713,3740.7,3739.9,4.35312804]
[1753127486130,0.4713,3740.7,3739.9,0.01312804]
[1753127486443,2.6735452,3740.4,3740.0,4.34]
[1753127486585,2.6735452,3740.4,3739.3,3.0]
[1753127486586,2.67365381,3740.2,3740.1,4.34]
[1753127486786,3.14495381,3740.2,3740.1,4.34]
[1753127487218,0.778,3740.1,3738.7,1.3532]
[1753127487523,0.4713,3740.0,3738.8,4.34]
[1753127487824,2.67317061,3740.9,3738.8,4.34]
[1753127487825,0.4713,3740.5,3739.3,3.55]
[1753127487997,0.7682,3740.6,3739.5,3.44424459]
[1753127488324,0.4713,3740.4,3739.7,2.67400464]
[1753127488531,0.4713,3740.4,3739.8,4.35113198]
[1753127488688,2.67373153,3740.1,3739.8,4.338]
[1753127488890,2.67386828,3739.9,3739.8,4.338]
[1753127489085,2.67380214,3740.0,3739.8,4.338]
[1753127489285,0.4713,3739.9,3739.8,4.338]
[1753127489493,0.4713,3739.9,3739.8,4.938]
[1753127489712,3.46303177,3739.9,3739.8,4.938]
[1753127489928,3.46303177,3739.9,3739.8,0.6]
[1753127489929,4.21503177,3739.9,3739.8,0.6]
[1753127490256,4.21503177,3739.9,3738.5,0.7607]
[1753127490257,2.67507404,3738.3,3737.8,6.418]
[1753127490457,0.4713,3738.2,3737.9,4.338]
[1753127490611,3.14639562,3738.2,3737.9,4.338]
[1753127490813,0.4713,3738.2,3737.9,4.338]
[1753127492017,0.4713,3738.2,3737.9,4.35116739]
[1753127492320,0.752,3738.3,3738.1,0.1336]
[1753127492526,0.4713,3738.2,3738.1,0.1336]
[1753127493368,0.752,3738.3,3738.1,0.1336]
[1753127494236,0.7907,3738.9,3738.2,0.01316418]
[1753127494436,0.7907,3738.9,3738.3,4.336]
[1753127494745,2.6748696,3738.5,3738.4,4.336]
[1753127495125,3.1461696,3738.5,3738.4,4.336]
[1753127495326,3.1461696,3738.5,3737.8,6.418]
[1753127495327,2.67522739,3738.0,3737.8,6.418]
[1753127495514,1.29544123,3737.9,3737.4,0.1336]
[1753127495715,0.4713,3737.8,3737.5,4.336]
[1753127495915,3.14667496,3737.8,3737.5,4.336]
[1753127496428,0.7907,3737.9,3737.4,0.1467749]
[1753127496753,2.67405296,3739.7,3736.4,7.7072]
[1753127496754,2.67556332,3737.6,3737.5,4.336]
[1753127497069,2.67601487,3736.9,3736.8,0.1336]
[1753127497248,2.67601487,3736.9,3736.8,4.336]
[1753127497568,3.14731487,3736.9,3736.6,0.1336]
[1753127497748,3.14731487,3736.9,3736.4,6.417]
[1753127497749,2.67601487,3736.9,3736.8,4.336]
[1753127498156,2.80956672,3737.0,3736.8,4.336]
[1753127498330,0.4713,3737.4,3736.8,4.7696]
[1753127498668,0.7907,3737.6,3736.9,0.1336]
[1753127498879,0.7907,3737.6,3737.1,0.1336]
[1753127499028,0.7907,3737.6,3737.2,4.335]
[1753127499228,0.4713,3737.5,3737.2,4.335]
[1753127499431,0.4713,3737.4,3737.2,4.335]
[1753127499789,0.4713,3737.3,3737.2,4.335]
[1753127499958,0.7907,3737.6,3737.2,4.335]
[1753127500135,0.4713,3737.5,3737.2,4.335]
[1753127500334,0.4713,3737.4,3737.2,4.335]
[1753127500550,0.7907,3737.6,3737.2,4.335]
[1753127500858,1.3956,3737.6,3737.2,4.335]
[1753127501231,0.50474481,3737.5,3737.2,4.335]
[1753127501663,0.03344481,3737.5,3737.2,4.335]
[1753127501976,0.03344481,3737.5,3737.0,0.1336]
[1753127501977,3.14695918,3737.4,3737.0,0.1336]
[1753127502194,3.14695918,3737.4,3736.5,2.67627816]
[1753127502195,0.5047466,3737.3,3737.1,4.335]
[1753127502468,0.4713,3737.4,3737.1,4.335]
[1753127502829,0.95774392,3737.6,3737.1,4.335]
[1753127503029,0.4713,3737.5,3737.1,4.335]
[1753127503266,2.67580006,3737.2,3737.1,4.335]
[1753127503579,3.14710006,3737.2,3737.1,4.335]
[1753127503781,3.94430006,3737.2,3737.1,4.335]
[1753127503943,2.67664468,3736.1,3735.1,2.07445424]
[1753127504264,0.7972,3736.6,3736.4,2.67635736]
[1753127504425,0.79674839,3737.1,3736.5,4.335]
[1753127504631,0.7633,3737.1,3736.6,4.335]
[1753127505078,0.4713,3737.0,3736.6,4.335]
[1753127505287,2.70946505,3736.9,3735.6,2.67690839]
[1753127505575,1.2566,3736.8,3735.7,4.335]
[1753127505782,1.2566,3736.8,3734.8,1.2858]
[1753127505783,0.7853,3735.8,3735.0,2.67734926]
[1753127505938,3.46214997,3735.8,3735.1,7.01229266]
[1753127506134,3.46214997,3735.8,3735.2,3.37844682]
[1753127506360,0.46576093,3735.7,3734.9,2.67744417]
[1753127506675,2.67696109,3735.6,3735.0,4.335]
[1753127506993,0.03346272,3735.5,3735.0,4.335]
[1753127507129,3.10942817,3735.4,3735.0,4.335]
[1753127507329,2.67730448,3735.1,3735.0,4.335]
[1753127507536,0.4323,3735.1,3735.0,4.335]
[1753127507941,2.67722533,3735.3,3735.0,4.335]
[1753127508149,0.03346541,3735.2,3735.0,4.335]
[1753127508470,0.7867,3735.1,3735.0,4.335]
[1753127508672,1.219,3735.1,3735.0,4.335]
[1753127509074,1.219,3735.1,3734.6,2.6776627]
[1753127509075,1.2524663,3735.1,3734.6,2.6776627]
[1753127509284,1.2524663,3735.1,3734.7,4.335]
[1753127509464,1.2524663,3735.1,3734.8,4.335]
[1753127509671,1.219,3735.1,3734.8,4.335]
[1753127509972,0.4657672,3735.0,3734.8,4.335]
[1753127510176,0.4323,3734.9,3734.8,4.335]
[1753127510344,0.0334672,3735.0,3734.8,4.335]
[1753127510547,0.4323,3735.0,3734.8,4.335]
[1753127510748,0.46576809,3734.9,3734.8,4.335]
[1753127510947,3.14321594,3734.9,3734.8,4.335]
[1753127511491,3.14321594,3734.9,3734.0,9.09609024]
[1753127511492,2.67766293,3734.6,3734.5,4.335]
[1753127511846,3.10996293,3734.6,3734.5,4.335]
[1753127512180,2.67789822,3734.3,3734.0,6.418]
[1753127512384,3.0,3735.1,3733.9,4.335]
[1753127512385,3.14378403,3734.2,3733.9,4.335]
[1753127512686,0.4323,3734.1,3733.9,4.335]
[1753127512893,0.7947,3734.0,3733.1,0.001]
[1753127513052,0.82817616,3734.0,3733.2,2.67859764]
[1753127513254,2.67816492,3733.9,3733.3,4.335]
[1753127513453,0.03347795,3733.8,3733.3,4.335]
[1753127513877,0.4323,3733.7,3733.3,4.335]
[1753127514059,0.59937975,3733.6,3733.1,0.001]
[1753127514256,2.81226709,3733.2,3733.1,0.001]
[1753127514452,3.47086709,3733.2,3733.1,0.001]
[1753127514661,1.2245,3733.2,3733.1,0.001]
[1753127514968,0.7922,3733.2,3733.1,0.001]
[1753127515168,0.7922,3733.8,3733.1,4.337]
[1753127515363,0.4323,3734.2,3733.2,0.44695015]
[1753127515587,0.46577437,3734.2,3733.2,0.44695015]
[1753127515791,3.1437386,3734.2,3733.2,0.44695015]
[1753127515961,3.1437386,3734.2,3733.3,4.336]
[1753127515962,2.67809319,3734.0,3733.3,4.336]
[1753127516152,2.67846946,3733.5,3733.3,4.336]
[1753127516351,2.67803258,3734.1,3733.3,4.336]
[1753127516352,3.14430513,3733.4,3733.3,4.336]
[1753127516700,2.67866709,3733.2,3733.1,0.001]
[1753127517191,3.14445042,3733.2,3733.1,0.001]
[1753127517863,2.67916945,3732.5,3732.4,0.001]
[1753127518578,3.86196945,3732.5,3732.4,0.001]
[1753127518761,3.86196945,3732.5,3732.4,4.337]
[1753127519290,0.03348872,3732.6,3732.4,4.337]
[1753127519493,0.7728,3732.9,3732.4,4.337]
[1753127519494,2.67908334,3732.7,3732.4,4.337]
[1753127519791,0.03348872,3732.6,3732.4,4.337]
[1753127520090,0.03348782,3732.7,3732.4,4.337]
[1753127520510,2.71251442,3732.7,3732.4,4.337]
[1753127520706,0.4323,3732.6,3732.4,0.001]
[1753127520906,2.67916945,3732.5,3732.4,0.001]
[1753127521404,0.7728,3733.3,3732.4,1.2208]
[1753127521569,0.7728,3733.3,3732.4,0.4348]
[1753127521772,2.67873884,3733.1,3732.5,4.336]
[1753127522071,0.4323,3733.2,3732.5,4.336]
[1753127522268,0.4323,3733.2,3732.4,0.001]
[1753127522500,2.67909767,3732.6,3732.5,4.336]
[1753127522705,3.11139767,3732.6,3732.5,4.336]
[1753127523007,0.4323,3732.6,3732.5,4.336]
[1753127523201,3.11139767,3732.6,3732.5,4.336]
[1753127523508,0.03348423,3733.1,3732.5,4.336]
[1753127524031,0.03348423,3733.1,3732.6,4.336]
[1753127524032,2.67907152,3732.7,3732.6,4.336]
[1753127524179,3.11133165,3732.7,3732.4,0.001]
[1753127524507,3.11133165,3732.7,3732.5,4.336]
[1753127524508,0.4323,3732.6,3732.5,4.336]
[1753127524695,3.45196945,3732.5,3732.4,0.001]
[1753127525081,3.88426945,3732.5,3732.4,0.001]
[1753127525281,6.88426945,3732.5,3732.4,0.001]
[1753127527187,2.6795284,3732.0,3731.9,1e-08]
[1753127527514,7.1160102,3732.0,3731.9,1e-08]
[1753127527726,7.5148161,3732.0,3731.9,1e-08]
[1753127527924,6.9377284,3732.0,3731.9,1e-08]
[1753127528518,3.9377284,3732.0,3731.9,1e-08]
[1753127528705,3.9712225,3732.0,3731.9,1e-08]
[1753127530119,1.2916941,3732.0,3731.9,1e-08]
[1753127530341,0.03349051,3732.4,3731.9,1e-08]
[1753127530543,0.4323,3732.7,3731.9,0.76280001]
[1753127530544,2.67908814,3732.7,3731.9,0.76280001]
[1753127530696,0.4323,3732.8,3731.9,0.76280001]
[1753127530697,2.67931435,3732.3,3731.9,1e-08]
[1753127531039,0.03349231,3732.2,3731.9,1e-08]
[1753127531354,2.6795284,3732.0,3731.9,1e-08]
[1753127531502,3.37473615,3732.0,3731.9,1e-08]
[1753127531705,3.80703615,3732.0,3731.9,1e-08]
[1753127532806,0.8593932,3732.1,3731.9,1e-08]
[1753127532986,0.03349141,3732.3,3731.9,1e-08]
[1753127534263,2.71268562,3732.5,3731.9,2.67959392]
[1753127534603,2.71268562,3732.5,3731.9,1e-08]
[1753127535224,0.4323,3732.8,3731.9,1e-08]
[1753127535453,0.7531,3733.1,3731.9,4.76460001]
[1753127535755,2.71230792,3733.0,3732.3,2.67926404]
[1753127535948,2.67890477,3732.9,3732.0,0.01326809]
[1753127536167,2.71246112,3732.8,3732.1,3.15719893]
[1753127536367,0.03348692,3732.8,3732.2,0.01326881]
[1753127536538,0.03348513,3733.0,3732.6,2.67907872]
[1753127536743,0.03348513,3733.0,3732.5,2.67914572]
[1753127537067,0.03348513,3733.0,3732.3,3.49420007]
[1753127537068,0.03348333,3733.2,3732.7,2.67895738]
[1753127537382,0.1336,3733.3,3733.0,2.67880475]
[1753127537557,2.81231768,3733.2,3732.7,4.336]
[1753127537879,0.03348423,3733.1,3732.7,4.336]
[1753127538174,0.16708333,3733.2,3732.7,4.336]
[1753127538478,2.8122692,3733.2,3732.7,4.336]
[1753127538680,0.50098423,3733.1,3732.6,0.1336]
[1753127538874,0.1336,3732.9,3732.2,0.1336]
[1753127539102,0.4675,3733.0,3732.2,0.1336]
[1753127539103,2.67909767,3732.6,3732.2,4.335]
[1753127539281,3.808,3733.1,3732.2,4.335]
[1753127539282,0.16708961,3732.5,3732.2,4.335]
[1753127539441,0.1336,3732.5,3732.2,4.335]
[1753127539883,0.03348423,3733.1,3732.4,0.7829]
[1753127540079,0.1336,3733.3,3732.7,2.6790259]
[1753127540247,0.1336,3733.3,3732.9,0.7829]
[1753127540446,2.67811885,3734.0,3733.2,2.67866136]
[1753127540780,0.03547706,3733.9,3733.0,4.335]
[1753127540961,0.4675,3733.8,3733.0,4.335]
[1753127541161,2.6786324,3733.3,3733.0,4.335]
[1753127541487,2.7118459,3733.7,3733.0,4.335]
[1753127541662,2.68021328,3733.9,3733.2,3.4615381]
[1753127541851,0.03347795,3733.8,3733.2,3.4615381]
[1753127542051,0.03347795,3733.8,3733.0,4.335]
[1753127542368,0.03547706,3733.9,3733.5,2.67844202]
[1753127542581,0.002,3733.9,3733.6,0.01324514]
[1753127542886,2.67825103,3733.8,3733.1,2.67872514]
[1753127543073,0.03547706,3733.9,3733.3,2.6785398]
[1753127543252,0.03547706,3733.9,3733.2,4.334]
[1753127543253,0.002,3733.9,3733.2,4.334]